Cogmind - Beta 11.1 @@@ ROGUE MODE // 2022.05.01 @ 15:26:20 Player: RNGesus Result: Self-destructed Performance ------------- Evolutions (4) 2000 Regions Visited (14) 2800 Robots Destroyed (214) 1070 Value Destroyed (7211) 7211 Prototype IDs (62) 1240 Alien Tech Used (0) 0 Bonus (1117) 1117 TOTAL SCORE: 15438 Bonus ------- High Alert Combat Kills 249 Follower Combat Kills 399 Aligned with FarCom 300 Met Data Miner 300 Friendly Fire -131 Cogmind --------- Core Integrity 311/850 Matter 280/300 Energy 66/100 System Corruption 3% Temperature Cool (0) Movement Walking (540) Ox6 Location -6/Factory Parts ------- > --- POWER (2) -------- (None) > --- PROPULSION (4) --- Carbon-fiber Leg > --- UTILITY (7) ------ Huge Storage Unit Enhanced Optical Array Improved Signal Interpreter Transmission Jammer Layered Light Armor Plating Makeshift System Shield > --- WEAPON (2) ------- AWS/Thermal > --- INVENTORY (25) --- Experimental Cooling System Matter Compressor (250) Advanced Terrain Scanner Seismic Detector Experimental Targeting Computer Experimental Core Analyzer Improved Particle Charger Layered Light Armor Plating Layered Light Armor Plating Thermal Defense Suite Thief Drone Bay (1/3) AS-neutralizer No. 17b Force Rifle Improved EM Pulse Cannon Phase Cannon Compact Ion Cannon Guided Plasma Cannon 8R-AWN's Boregun Magnetic Acceleration Cannon Bore Cannon AWS/Autocannon Great Axe Peak State ------------ > --- POWER ------------ Improved Deuterium Engine Enhanced Fission Core > --- PROPULSION ------- Advanced Myomer Leg Advanced Myomer Leg Gravmag System Gravmag System > --- UTILITY ---------- Experimental Cooling System Huge Storage Unit Enhanced Optical Array Improved Sensor Array Improved Signal Interpreter Hardened Heavy Armor Plating > --- WEAPON ----------- Neutron Cannon > --- INVENTORY -------- Experimental Cooling System Matter Compressor Advanced Terrain Scanner Advanced Targeting Computer Experimental Targeting Computer Experimental Core Analyzer Improved Particle Charger Transmission Jammer Thermal Defense Suite Hacking Suite Makeshift System Shield System Restoration Module Thief Drone Bay AS-neutralizer No. 17b AWS/Thermal Improved EM Pulse Cannon Guided Plasma Cannon 8R-AWN's Boregun Magnetic Acceleration Cannon Bore Cannon AWS/Autocannon Great Axe [Rating: 85] Favorites ----------- Power Light Ion Engine Engine Light Ion Engine Power Core Reinforced Fission Core Reactor Cold Fusion Reactor Propulsion Light Treads Treads Light Treads Leg Advanced Myomer Leg Wheel Compact Wheel Hover Unit Gravmag System Utility Huge Storage Unit Device Seismic Detector Storage Huge Storage Unit Processor Improved Signal Interpreter Hackware Makeshift System Shield Protection Light Armor Plating Weapon Autogun Energy Gun Force Rifle Energy Cannon Neutron Cannon Ballistic Gun Autogun Ballistic Cannon Magnetic Acceleration Cannon Launcher Improved Grenade Launcher Special Weapon Plasma Cutter Slashing Weapon Great Axe Build | -11 -10 -10 -9 -9 -9 -8 -8 -8 -7 -7 -7 -7 -6 -6 ------- Run | Scr Mat Min Mat Min Exi Min Mat Sto Fac Low Low Dat Pro Fac Slots Evolved 8 | . . . 2 . . . 2 . 2 . . . . 2 Power 1 | . . . . . . . . . . . . . . 1 Propulsion 2 | . . . 1 . . . 1 . . . . . . . Utility 5 | . . . 1 . . . 1 . 2 . . . . 1 Weapon . | . . . . . . . . . . . . . . . Parts Attached 184 | 6 6 2 12 3 33 1 28 8 29 4 5 . 9 38 Power 14 | 1 . 1 . . 2 . 1 . 3 . . . . 6 Engine 6 | 1 . 1 . . . . . . . . . . . 4 Core 7 | . . . . . 2 . 1 . 2 . . . . 2 Reactor 1 | . . . . . . . . . 1 . . . . . Propulsion 49 | 2 . . 4 . 7 . 11 3 4 1 1 . 3 13 Treads 33 | 2 . . 4 . 4 . 11 3 3 . 1 . 1 4 Leg 10 | . . . . . 3 . . . . . . . 2 5 Wheel 4 | . . . . . . . . . 1 1 . . . 2 Hover 2 | . . . . . . . . . . . . . . 2 Flight . | . . . . . . . . . . . . . . . Utility 54 | 1 4 1 3 1 13 . 8 . 9 . 1 . 1 12 Device 25 | . 1 1 1 . 9 . 2 . 4 . . . 1 6 Storage 6 | 1 3 . 1 . . . 1 . . . . . . . Processor 4 | . . . . . . . . . 3 . 1 . . . Hackware 3 | . . . . . . . . . 1 . . . . 2 Protection 16 | . . . 1 1 4 . 5 . 1 . . . . 4 Artifact . | . . . . . . . . . . . . . . . Weapon 67 | 2 2 . 5 2 11 1 8 5 13 3 3 . 5 7 Energy Gun 13 | 1 . . . . . . 1 . 4 1 2 . 3 1 Energy Cannon 10 | . . . . . 3 . . . 2 . . . . 5 Ballistic Gun 27 | 1 2 . 3 1 6 . 6 4 4 . . . . . Ballistic Cannon 2 | . . . . 1 . . . . . . . . . 1 Launcher 13 | . . . 2 . 1 1 1 1 2 2 1 . 2 . Special Weapon 1 | . . . . . 1 . . . . . . . . . Impact Weapon . | . . . . . . . . . . . . . . . Slashing Weapon 1 | . . . . . . . . . 1 . . . . . Piercing Weapon . | . . . . . . . . . . . . . . . Special Melee Weapon . | . . . . . . . . . . . . . . . Unidentified Prototypes 18 | . . 1 . . 6 . 1 . 9 . . . . 1 Parts Lost 47 | . . 1 . 1 6 . 2 . 5 2 1 . 6 23 Power 8 | . . 1 . . 1 . . . . . . . . 6 Propulsion 20 | . . . . . 3 . . . 2 2 1 . 3 9 Utility 13 | . . . . 1 . . 2 . 3 . . . . 7 Weapon 6 | . . . . . 2 . . . . . . . 3 1 Highest Loss Streak 6 | . . 1 . 1 3 . 1 . 3 2 1 . 5 6 To Critical Strikes 4 | . . . . . 4 . . . . . . . . . Average Slot Usage (%) 93 | . 97 92 99 99 94 100 96 99 98 93 87 69 84 82 Engine 4 | . 14 13 11 11 6 . . . . . . . . 3 Core 4 | . . . . . 4 11 9 9 6 7 7 7 7 5 Treads 22 | . 28 28 32 33 23 11 31 36 29 16 11 7 11 1 Leg 3 | . . . . . 6 22 3 . . . . . . 14 Wheel 1 | . . . . . . . . . . 6 7 7 6 2 Device 11 | . 11 7 10 11 10 11 15 18 11 15 13 7 7 10 Storage 9 | . 14 14 11 11 11 11 9 9 7 7 7 7 7 6 Processor 8 | . . . . . . . . . 16 23 23 30 30 17 Protection 5 | . . . 10 10 9 11 10 9 6 . . . . 4 Energy Gun 1 | . 7 . . . . . . . 1 13 10 . 8 . Energy Cannon 1 | . . . . . 2 . . . . . . . . 8 Ballistic Gun 13 | . 20 28 21 21 18 21 17 17 12 . . . . . Naked Turns . | . . . . . . . . . . . . . . . Heaviest Build 142 | 11 50 50 93 99 125 96 120 120 123 106 106 94 105 142 Greatest Support 88 | 40 40 40 63 63 63 60 80 80 88 20 16 16 60 80 Greatest Overweight (x) 8 | 3 1 1 1 1 5 1 2 1 6 6 6 5 6 8 Average Overweight (x) 2 | . . 1 . 1 1 1 1 1 1 5 6 5 5 3 Largest Inventory Capacity 25 | 8 20 20 25 25 25 25 25 25 25 25 25 25 25 25 Average Capacity 23 | 7 18 20 21 25 25 25 25 25 25 25 25 25 25 25 Most Carried 25 | 2 13 19 24 23 25 25 25 25 25 25 25 24 24 25 Average Carried 21 | . 8 16 19 22 23 25 24 24 23 25 24 23 22 23 Final Capacity 25 | 8 20 20 25 25 25 25 25 25 25 25 25 25 25 25 Final Carried 25 | 2 13 19 22 22 25 25 25 25 25 25 22 24 20 24 Class Distribution -------------------- 58% | Mutant 35% | Scavenger-Mutant 4% | Scavenger-Skirmisher Dominant Class ---------------- Mutant | -10/Materials Mutant | -10/Mines Mutant | -9/Materials Mutant | -9/Mines Mutant | -9/Exiles Scavenger-Mutant | -8/Mines Mutant | -8/Materials Scavenger-Mutant | -8/Storage Scavenger-Mutant | -7/Factory Scavenger-Mutant | -7/Lower Caves Scavenger-Mutant | -7/Lower Caves Scavenger-Mutant | -7/Data Miner Scavenger-Mutant | -6/Proximity Caves Mutant | -6/Factory Resources | -11 -10 -10 -9 -9 -9 -8 -8 -8 -7 -7 -7 -7 -6 -6 ----------- Run | Scr Mat Min Mat Min Exi Min Mat Sto Fac Low Low Dat Pro Fac Matter Collected 5725 | 167 258 89 366 501 594 31 1059 591 940 136 235 . 167 591 Remotely . | . . . . . . . . . . . . . . . Salvage Created 8303 | . 437 70 503 569 411 24 1405 929 1228 632 269 . 172 1654 Parts 477 | . 19 10 42 37 37 6 65 50 72 28 12 . 19 80 Haulers Intercepted 11 | . 1 . 2 . . . 3 3 2 . . . . . Recyclers Shooed 9 | . 1 . 4 . . . 3 . . . . . . 1 Parts Field Recycled . | . . . . . . . . . . . . . . . Retrieved Matter . | . . . . . . . . . . . . . . . Parts Self-Destructed 50 | . . . . . . . . . . 24 10 . 16 . Prevented . | . . . . . . . . . . . . . . . Kills | -11 -10 -10 -9 -9 -9 -8 -8 -8 -7 -7 -7 -7 -6 -6 ------- Run | Scr Mat Min Mat Min Exi Min Mat Sto Fac Low Low Dat Pro Fac Combat Hostiles Destroyed 173 | . 10 3 14 16 8 3 17 17 27 16 7 . 3 32 Guns 94 | . 10 3 5 13 1 . 14 17 19 9 1 . 2 . Cannons 26 | . . . . . . . . . . . . . . 26 AOE 52 | . . . 9 3 7 3 3 . 8 7 6 . 1 5 Classes Destroyed 23 | . 4 1 3 1 2 . 5 . 4 . 1 . . 2 Worker 15 | . . . 1 5 . . 5 1 2 . . . . 1 Builder 3 | . . 1 . . . . . . 1 . . . . 1 Hauler 11 | . 1 . 2 . . . 3 3 2 . . . . . Recycler 10 | . . . . . . . 5 . 2 . . . . 3 Mechanic 1 | . 1 . . . . . . . . . . . . . Operator 4 | . . . . . . . 1 1 2 . . . . . Drone 1 | . . . . . 1 . . . . . . . . . Watcher 2 | . . . 1 . . . 1 . . . . . . . Swarmer 33 | . 3 3 4 4 . 3 . 3 . 5 . . 1 7 Cutter 2 | . . . . . . . . . . . . . . 2 Saboteur 1 | . . . . . . . . . . . . . . 1 Grunt 68 | . 7 . 6 10 . . 11 7 7 7 6 . . 7 Brawler 2 | . . . . . . . 1 . . . 1 . . . Duelist 3 | . . . . . . . . . 1 2 . . . . Protector 2 | . . . . . . . . . 2 . . . . . Sentry 20 | . . . 4 . . . 3 6 3 1 . . . 3 Specialist 1 | . . . . . . . . . 1 . . . . . Hunter 15 | . . . . . . . 1 1 6 . . . . 7 Programmer 15 | . . . . . . . . . 7 1 . . 2 5 Heavy 1 | . . . . . . . 1 . . . . . . . Zionite 1 | . . . . . 1 . . . . . . . . . Samaritan 2 | . . . . . . . . . . . 1 . 1 . Assembled 9 | . . . . 2 7 . . . . . . . . . Best Kill Streak 9 | . 5 3 8 5 7 3 6 6 9 6 3 . 2 5 Combat Bots Only 8 | . 5 3 6 4 7 3 4 4 8 6 3 . 2 5 Max Kills in Single Turn 5 | . 1 2 5 3 2 2 4 2 4 2 2 . 1 4 Gunslinging 1 | . . 1 . . . . . . . . . . . . Exploded 4 | . . . 4 3 2 2 2 . 4 2 2 . 1 2 Melee . | . . . . . . . . . . . . . . . Uniques/NPCs Destroyed 4 | . . . . . 4 . . . . . . . . . 8R-AWN (-9/Exiles) EX-HEX (-9/Exiles) EX-DEC (-9/Exiles) EX-BIN (-9/Exiles) Combat | -11 -10 -10 -9 -9 -9 -8 -8 -8 -7 -7 -7 -7 -6 -6 -------- Run | Scr Mat Min Mat Min Exi Min Mat Sto Fac Low Low Dat Pro Fac Damage Taken 10773 | . 231 120 438 352 849 54 1041 794 1653 386 210 . 454 4191 Core 1259 | . 37 27 32 32 145 11 35 47 164 46 46 . 98 539 Absorbed by Shields 904 | . . . . . . . 248 312 344 . . . . . Regen/Repaired (Parts) 518 | . . . . . . . . . 518 . . . . . Core Remaining (%) 70 | 100 . 74 . . . 45 . 85 . . . . 49 . Volleys Fired 634 | . 31 9 37 56 75 2 83 68 71 30 23 . 8 141 Largest 2 | . 2 2 2 2 2 1 2 2 2 2 2 . 2 2 Hottest 180 | . 60 46 46 57 120 33 50 50 160 160 160 . 160 180 Shots Fired 1110 | . 61 18 68 102 116 2 164 134 170 49 30 . 13 183 Gun 849 | . 61 18 62 92 81 . 162 132 162 39 18 . 12 10 Cannon 203 | . . . . 10 20 . . . . . . . . 173 Launcher 53 | . . . 6 . 10 2 2 2 8 10 12 . 1 . Special 5 | . . . . . 5 . . . . . . . . . Kinetic 715 | . 37 18 62 102 81 . 162 132 117 . . . . 4 Thermal 333 | . 24 . . . 25 . . . 45 39 18 . 12 170 Explosive 53 | . . . 6 . 10 2 2 2 8 10 12 . 1 . Electromagnetic 9 | . . . . . . . . . . . . . . 9 Robot Hit Streak 25 | . 12 3 6 14 10 . 12 11 25 5 8 . 8 18 Robot Miss Streak 6 | . 4 5 3 3 3 . 4 3 5 4 1 . 1 6 Penetration Max . | . . . . . . . . . . . . . . . Secondary Targets 13 | . 1 1 . 1 . . 1 3 1 5 . . . . Max Gunslinging Chain 1 | . 1 1 . 1 . . 1 1 1 1 . . . . Autonomous 48 | . . . . . . . . . 38 . . . . 10 Shots Hit Robots 732 | . 43 8 40 64 63 . 117 89 142 25 19 . 9 113 Core Hits 461 | . 22 4 30 23 33 3 61 43 138 24 23 . 5 52 Critical Kills 4 | . . . . . . . 1 1 1 . 1 . . . Critical Parts Destroyed 4 | . . . 1 . 1 . 1 . . 1 . . . . Critical Strikes 8 | . . . 1 . 1 . 2 1 1 1 1 . . . Destroy 8 | . . . 1 . 1 . 2 1 1 1 1 . . . Melee Attacks 3 | . . . . . . . . . 3 . . . . . Impact . | . . . . . . . . . . . . . . . Slashing 3 | . . . . . . . . . 3 . . . . . Piercing . | . . . . . . . . . . . . . . . Sneak Attacks . | . . . . . . . . . . . . . . . Combat Hostiles . | . . . . . . . . . . . . . . . Follow-up Attacks . | . . . . . . . . . . . . . . . Damage Inflicted 21369 | . 604 127 1361 1101 1985 121 2232 1437 4437 1163 1284 . 291 5226 Guns 10450 | . 604 127 574 901 732 . 1930 1437 2760 491 358 . 234 302 Cannons 4495 | . . . . . 702 . . . . . . . . 3793 Explosions 6411 | . . . 787 199 539 121 302 . 1677 672 926 . 57 1131 Melee . | . . . . . . . . . . . . . . . Ramming 1 | . . . . 1 . . . . . . . . . . Kinetic 7925 | . 396 127 574 901 732 . 1930 1437 1770 . . . . 58 Thermal 7972 | . 208 . . 199 714 . . . 990 491 358 . 234 4778 Explosive 5230 | . . . 787 . 539 121 302 . 1677 672 926 . 57 149 Electromagnetic 241 | . . . . . . . . . . . . . . 241 Impact . | . . . . . . . . . . . . . . . Slashing . | . . . . . . . . . . . . . . . Piercing . | . . . . . . . . . . . . . . . Highest Corruption 8 | . . . . . . . . 3 7 8 8 8 8 3 Average Corruption 6 | . . . . . . . . 2 5 7 8 8 8 1 Corruption Purged . | . . . . . . . . . . . . . . . Corruption Blocked . | . . . . . . . . . . . . . . . Effects 94 | . . . . . . . . 7 10 18 27 5 26 1 Message Errors 29 | . . . . . . . . 1 2 6 9 3 8 . Matter Fused 25 | . . . . . . . . 4 2 4 7 . 8 . Heat Flow Errors 11 | . . . . . . . . 1 1 3 3 . 2 1 Energy Discharges 9 | . . . . . . . . . 3 2 1 . 3 . Parts Rejected 2 | . . . . . . . . . . 1 . . 1 . Data Loss (minor) 7 | . . . . . . . . . 1 . 2 1 3 . Data Loss (major) 7 | . . . . . . . . 1 . 1 3 1 1 . Misfires 1 | . . . . . . . . . . . 1 . . . Alerts 1 | . . . . . . . . . . . 1 . . . Weapon Failures 2 | . . . . . . . . . 1 1 . . . . Overload Shots . | . . . . . . . . . . . . . . . Overflow Damage 515 | . . . 28 32 39 . . . 15 . 44 . . 357 Projectiles 78 | . . . . . 28 . . . . . . . . 50 Explosions 437 | . . . 28 32 11 . . . 15 . 44 . . 307 Melee . | . . . . . . . . . . . . . . . Knockbacks . | . . . . . . . . . . . . . . . Impact . | . . . . . . . . . . . . . . . Kinetic . | . . . . . . . . . . . . . . . Secondary . | . . . . . . . . . . . . . . . Self-Inflicted Damage 298 | . . . . . 29 33 19 . 13 . 35 . . 169 Shots 9 | . . . . . 1 1 1 . 2 . 2 . . 2 Rammed . | . . . . . . . . . . . . . . . Targets Rammed 1 | . . . . 1 . . . . . . . . . . Kicked . | . . . . . . . . . . . . . . . Crushed 1 | . . . . 1 . . . . . . . . . . Highest Temperature 461 | . 39 12 49 144 461 . 119 193 151 283 184 . 246 368 Average Temperature 58 | . 16 6 11 20 132 . 28 44 17 142 59 . 89 81 Received Heat Transfer 1887 | . 96 . 183 162 . . 316 275 225 96 90 . 24 420 Effects 7 | . . . . . 6 . . . . . . . . 1 Shutdowns 1 | . . . . . 1 . . . . . . . . . Energy Bleed 2 | . . . . . 1 . . . . . . . . 1 Interference 1 | . . . . . 1 . . . . . . . . . Matter Decay 1 | . . . . . 1 . . . . . . . . . Damage (major) 2 | . . . . . 2 . . . . . . . . . Siege Activations . | . . . . . . . . . . . . . . . Robots Corrupted . | . . . . . . . . . . . . . . . Combat Hostiles . | . . . . . . . . . . . . . . . Parts Fried 3 | . . . . . . . . . . . . . . 3 Impact Corruptions . | . . . . . . . . . . . . . . . Robots Melted 2 | . . . . . 1 . . . . . . . . 1 Combat Hostiles 1 | . . . . . . . . . . . . . . 1 Parts Melted 30 | . . . . 1 17 . . . . 1 2 . 3 6 Heat Transferred 8795 | . 450 . . 300 1627 . . . 1202 740 555 . 333 3588 Parts Sabotaged . | . . . . . . . . . . . . . . . Parts Stolen 3 | . . . . . . . . . . . 3 . . . Parts Stripped . | . . . . . . . . . . . . . . . Power Chain Reactions . | . . . . . . . . . . . . . . . Missiles Intercepted . | . . . . . . . . . . . . . . . Alert | -11 -10 -10 -9 -9 -9 -8 -8 -8 -7 -7 -7 -7 -6 -6 ------- Run | Scr Mat Min Mat Min Exi Min Mat Sto Fac Low Low Dat Pro Fac Peak Influence 558 | . 204 67 449 333 . 107 370 470 558 . . . . 554 Initial 196 | . . 7 . 136 . . 41 156 196 . . . . . Average 173 | . 68 17 290 182 . 5 136 308 246 . . . . 186 Maximum Alert Level 2 | . 1 . 2 1 . . 1 2 2 . . . . 2 Low Security (%) 59 | 100 95 100 23 64 . 100 69 11 37 . . . . 61 Level 1 33 | . 4 . 48 35 . . 30 77 50 . . . . 30 Level 2 7 | . . . 28 . . . . 10 12 . . . . 8 Level 3 . | . . . . . . . . . . . . . . . Level 4 . | . . . . . . . . . . . . . . . Level 5 . | . . . . . . . . . . . . . . . High Security . | . . . . . . . . . . . . . . . Max Security . | . . . . . . . . . . . . . . . Squads Dispatched 26 | . 1 . 1 . . . 2 7 5 . . . . 10 Investigation 6 | . 1 . 1 . . . . 2 1 . . . . 1 Extermination 6 | . . . . . . . . . 2 . . . . 4 Reinforcement 10 | . . . . . . . 2 2 2 . . . . 4 Assault 1 | . . . . . . . . . . . . . . 1 Garrison 3 | . . . . . . . . 3 . . . . . . Intercept . | . . . . . . . . . . . . . . . Searches Triggered . | . . . . . . . . . . . . . . . Data Miner Redirects 2 | . . . . . . . . . . . . . . 2 Construction Impeded 2 | . . . . . . . . . 1 . . . . 1 Haulers Reinforced 1 | . . . . . . . . . . . . . . 1 Active Scanning Responses . | . . . . . . . . . . . . . . . Cargo Convoy Interrupts 2 | . . . . . . . . . 1 . . . . 1 Stealth | -11 -10 -10 -9 -9 -9 -8 -8 -8 -7 -7 -7 -7 -6 -6 --------- Run | Scr Mat Min Mat Min Exi Min Mat Sto Fac Low Low Dat Pro Fac Distress Signals 14 | . . . 2 1 . . 3 4 3 . . . . 1 Communications Jammed 34 | . . . . . . . . . . . . . . 34 Distress Signals 34 | . . . . . . . . . . . . . . 34 Times Spotted 368 | . 17 3 26 15 97 3 37 31 49 15 13 . 6 56 Peak Tracking Total 12 | . 3 3 8 4 9 3 8 6 12 4 5 . 4 11 Tactical Retreats 31 | . 1 . 2 1 16 . 6 . 1 . . . . 4 Traps | -11 -10 -10 -9 -9 -9 -8 -8 -8 -7 -7 -7 -7 -6 -6 ------- Run | Scr Mat Min Mat Min Exi Min Mat Sto Fac Low Low Dat Pro Fac Traps Triggered 4 | . . . . . . . 2 2 . . . . . . Indirectly . | . . . . . . . . . . . . . . . Trap Hack Attempts . | . . . . . . . . . . . . . . . Triggered . | . . . . . . . . . . . . . . . Disarmed . | . . . . . . . . . . . . . . . Reprogrammed . | . . . . . . . . . . . . . . . Reused . | . . . . . . . . . . . . . . . Traps Extracted . | . . . . . . . . . . . . . . . Installed . | . . . . . . . . . . . . . . . Triggered 1 | . . . . . . . . . . . . . 1 . Machines | -11 -10 -10 -9 -9 -9 -8 -8 -8 -7 -7 -7 -7 -6 -6 ---------- Run | Scr Mat Min Mat Min Exi Min Mat Sto Fac Low Low Dat Pro Fac Machines Disabled 20 | . . . 1 2 6 1 . . . . . . 1 9 Max in Single Turn 3 | . . . 1 2 1 1 . . . . . . . 3 Machines Sabotaged . | . . . . . . . . . . . . . . . Garrisons Compromised . | . . . . . . . . . . . . . . . Overloaded Fab Kills . | . . . . . . . . . . . . . . . Hacking | -11 -10 -10 -9 -9 -9 -8 -8 -8 -7 -7 -7 -7 -6 -6 --------- Run | Scr Mat Min Mat Min Exi Min Mat Sto Fac Low Low Dat Pro Fac Machines Accessed 34 | . 2 2 6 . 2 . 3 3 4 . 1 4 . 7 Terminals 14 | . 1 . 5 . . . 1 2 1 . . . . 4 Fabricators 1 | . . . . . . . . . . . . . . 1 Repair Stations 3 | . . . . . . . . . 2 . . . . 1 Recycling Units 4 | . 1 . 1 . . . 1 . 1 . . . . . Scanalyzers 1 | . . . . . . . 1 . . . . . . . Garrison Access 2 | . . . . . . . . 1 . . . . . 1 Total Hacks 114 | . 6 2 23 . 6 . 5 7 10 . 1 29 . 25 Successful 74 | . 4 2 10 . 6 . 4 2 7 . 1 29 . 9 Failed 39 | . 2 . 12 . . . 1 5 3 . . . . 16 Catastrophic 7 | . . . 3 . . . 1 1 . . . . . 2 Database Lockouts 1 | . . . 1 . . . . . . . . . . . Manual 45 | . 5 . 23 . 1 . 2 2 4 . . . . 8 Terminals 52 | . 4 . 21 . . . 2 4 2 . . . . 19 Fabricators 1 | . . . . . . . . . . . . . . 1 Repair Stations 9 | . . . . . . . . . 6 . . . . 3 Recycling Units 7 | . 2 . 2 . . . 1 . 2 . . . . . Scanalyzers 2 | . . . . . . . 2 . . . . . . . Garrison Access 5 | . . . . . . . . 3 . . . . . 2 Terminal Hacks 60 | . 3 2 9 . 6 . 1 2 1 . 1 29 . 6 Record 16 | . . . . . 5 . . . . . . 11 . . Part Schematic 11 | . . . 2 . . . . . . . . 9 . . Robot Schematic 6 | . . . . . . . . . . . . 6 . . Robot Analysis 4 | . 3 . 1 . . . . . . . . . . . Prototype ID Bank 10 | . . . 5 . . . . . . . . 3 . 2 Open Door 4 | . . 2 . . . . . 1 . . 1 . . . Branch Access Points 3 | . . . . . . . 1 . 1 . . . . 1 Terminal Index 1 | . . . . . . . . 1 . . . . . . Alert Level 1 | . . . . . . . . . . . . . . 1 Hauler Manifests 2 | . . . 1 . . . . . . . . . . 1 Registered Components 1 | . . . . . . . . . . . . . . 1 EX-Prototype ID Bank 1 | . . . . . 1 . . . . . . . . . Fabricator Hacks 1 | . . . . . . . . . . . . . . 1 Build 1 | . . . . . . . . . . . . . . 1 Repair Station Hacks 4 | . . . . . . . . . 4 . . . . . Scan Component 2 | . . . . . . . . . 2 . . . . . Repair 2 | . . . . . . . . . 2 . . . . . Recycling Unit Hacks 1 | . . . . . . . 1 . . . . . . . Retrieve Components 1 | . . . . . . . 1 . . . . . . . Scanalyzer 2 | . . . . . . . 2 . . . . . . . Insert Component 2 | . . . . . . . 2 . . . . . . . Garrison Access Hacks . | . . . . . . . . . . . . . . . Unauthorized Hacks 6 | . 1 . 1 . . . . . 2 . . . . 2 Terminals 3 | . . . . . . . . . 1 . . . . 2 Assimilate 3 | . . . . . . . . . 1 . . . . 2 Fabricators . | . . . . . . . . . . . . . . . Repair Stations . | . . . . . . . . . . . . . . . Recycling Units 3 | . 1 . 1 . . . . . 1 . . . . . Mask 1 | . . . . . . . . . 1 . . . . . Tunnel 2 | . 1 . 1 . . . . . . . . . . . Scanalyzers . | . . . . . . . . . . . . . . . Garrison Access . | . . . . . . . . . . . . . . . Data Cores Recovered 1 | . . . . . . . . . 1 . . . . . Used . | . . . . . . . . . . . . . . . Hacking Detections 19 | . 2 . 6 . . . 1 2 3 . . . . 5 Full Trace Events 3 | . . . . . . . . 1 1 . . . . 1 Feedback Events . | . . . . . . . . . . . . . . . Feedback Blocked . | . . . . . . . . . . . . . . . Robot Schematics Acquired 6 | . . . . . . . . . . . . 6 . . Robots Built . | . . . . . . . . . . . . . . . Authchips . | . . . . . . . . . . . . . . . Time . | . . . . . . . . . . . . . . . Total Robot Build Rating . | . . . . . . . . . . . . . . . Part Schematics Acquired 11 | . . . 2 . . . . . . . . 9 . . Parts Built 2 | . . . . . . . . . . . . . . 2 Authchips . | . . . . . . . . . . . . . . . Time 128 | . . . . . . . . . . . . . . 128 Total Part Build Rating 16 | . . . . . . . . . . . . . . 16 Parts Repaired 2 | . . . . . . . . . 2 . . . . . Time 47 | . . . . . . . . . 47 . . . . . Parts Recycled . | . . . . . . . . . . . . . . . Recycled Matter . | . . . . . . . . . . . . . . . Retrieved Matter . | . . . . . . . . . . . . . . . Retrieved Components 10 | . . . . . . . 10 . . . . . . . Parts Scanalyzed . | . . . . . . . . . . . . . . . Part Schematics Acquired . | . . . . . . . . . . . . . . . Parts Damaged . | . . . . . . . . . . . . . . . Bothacking | -11 -10 -10 -9 -9 -9 -8 -8 -8 -7 -7 -7 -7 -6 -6 ------------ Run | Scr Mat Min Mat Min Exi Min Mat Sto Fac Low Low Dat Pro Fac Used RIF Installer . | . . . . . . . . . . . . . . . Robots Hacked . | . . . . . . . . . . . . . . . Non-combat . | . . . . . . . . . . . . . . . Combat . | . . . . . . . . . . . . . . . Robot Hacks Applied . | . . . . . . . . . . . . . . . Relay Couplers Released 3 | . . . . . . . . . 3 . . . . . Programmers 3 | . . . . . . . . . 3 . . . . . Fabnet Peak Effective % . | . . . . . . . . . . . . . . . Robots Rewired . | . . . . . . . . . . . . . . . Allies Hacked . | . . . . . . . . . . . . . . . Hacks Repelled . | . . . . . . . . . . . . . . . Allies | -11 -10 -10 -9 -9 -9 -8 -8 -8 -7 -7 -7 -7 -6 -6 -------- Run | Scr Mat Min Mat Min Exi Min Mat Sto Fac Low Low Dat Pro Fac Total Allies 13 | . . . . 2 . . . 10 . . . . 1 . Largest Group 10 | . . . . 2 . . . 10 8 . . . 1 . Highest-Rated Group 173 | . . . . 41 . . . 173 141 . . . 96 . Highest-Rated Ally 96 | . . . . 31 . . . 29 29 . . . 96 . Total Orders . | . . . . . . . . . . . . . . . Ally Attacks 168 | . . . . 5 66 . . 28 59 . 5 . 5 . Total Damage 1789 | . . . . 40 374 . . 363 760 . 252 . . . Kills 12 | . . . . . . . . 4 5 . 3 . . . Allies Corrupted . | . . . . . . . . . . . . . . . Allies Melted . | . . . . . . . . . . . . . . . Turrets Deployed 1 | . . . . . . . . . . . 1 . . . Intel | -11 -10 -10 -9 -9 -9 -8 -8 -8 -7 -7 -7 -7 -6 -6 ------- Run | Scr Mat Min Mat Min Exi Min Mat Sto Fac Low Low Dat Pro Fac Robot Analysis Total 4 | . 3 . 1 . . . . . . . . . . . Derelict Logs Recovered 9 | . . 2 . 3 . . . . . . 3 . 1 . Drone Launches 8 | . . . . . 8 . . . . . . . . . Drone Recoveries 6 | . . . . . 6 . . . . . . . . . Exploration | -11 -10 -10 -9 -9 -9 -8 -8 -8 -7 -7 -7 -7 -6 -6 ------------- Run | Scr Mat Min Mat Min Exi Min Mat Sto Fac Low Low Dat Pro Fac Turns Passed 17201 | 76 922 1617 1070 1391 2241 281 1442 1218 1762 570 770 159 853 2829 Spaces Moved 6871 | 42 384 578 530 512 805 145 503 422 606 258 373 91 435 1187 Core 16 | 16 . . . . . . . . . . . . . . Treads 3939 | 26 384 578 530 512 529 . 387 422 569 2 . . . . Legs 1227 | . . . . . 276 145 116 . . . . . 21 669 Wheels 1689 | . . . . . . . . . 37 256 373 91 414 518 Hover . | . . . . . . . . . . . . . . . Flight . | . . . . . . . . . . . . . . . Fastest Speed 50 | 50 160 240 160 240 190 190 190 242 190 190 190 175 175 175 Average Speed 215 | 158 208 240 178 240 232 190 229 242 238 192 190 175 189 203 Slowest Speed 570 | 200 240 240 240 240 560 190 320 242 243 570 190 175 190 260 Overloaded Moves . | . . . . . . . . . . . . . . . Propulsion Burnouts . | . . . . . . . . . . . . . . . Robots Hopped . | . . . . . . . . . . . . . . . Cave-ins Triggered . | . . . . . . . . . . . . . . . Exploration Rate (%) 58 | 5 58 94 59 98 91 40 32 91 18 46 61 74 72 33 Regions Visited 14 Branch Regions 9 Pre-discovered Areas 6 | . 1 1 1 1 1 . . . . . . 1 . . Known Exits Taken 6 | . . . . . . . 1 . 1 1 1 1 1 . Unknown Exits Taken 8 | 1 1 1 1 1 1 1 . 1 . . . . . . Scrap Searched 8 | . . 1 . 1 . 1 . . . 1 2 . 2 . Spaces Dug 80 | . . . 20 . . . 10 23 8 11 . . . 8 Terrain Destroyed 492 | . . . 56 22 33 26 19 23 23 93 79 . 9 109 Melee 3 | . . . . . . . . . 3 . . . . . Projectile 38 | . . . . 1 . . . . 5 . . . . 32 AOE 451 | . . . 56 21 33 26 19 23 15 93 79 . 9 77 Terrain Rammed . | . . . . . . . . . . . . . . . Walls Destroyed . | . . . . . . . . . . . . . . . Machines Disabled . | . . . . . . . . . . . . . . . Actions | -11 -10 -10 -9 -9 -9 -8 -8 -8 -7 -7 -7 -7 -6 -6 --------- Run | Scr Mat Min Mat Min Exi Min Mat Sto Fac Low Low Dat Pro Fac Total 8339 | 49 446 795 599 580 1071 149 653 535 794 291 415 92 452 1418 Wait 469 | . 8 199 8 8 116 . 15 30 64 . 2 . . 19 Move 6857 | 41 383 577 529 511 804 144 502 421 605 257 372 90 434 1187 Hop . | . . . . . . . . . . . . . . . Pick Up 82 | 2 11 6 7 1 17 1 5 1 6 . 6 . 1 18 Fast Attach 67 | 6 3 . . . 7 . 11 2 13 1 2 . 2 20 Attach 36 | . . 2 3 1 6 . 2 . 6 . . . 5 11 Detach 20 | . 2 2 . . 3 . 2 . 5 . . 2 . 4 Swap 81 | . 3 . 9 2 20 1 15 6 10 3 3 . 2 7 Drop 89 | . 5 . 6 . 23 1 18 7 11 . 7 . . 11 Fire 634 | . 31 9 37 56 75 2 83 68 71 30 23 . 8 141 Melee 3 | . . . . . . . . . 3 . . . . . Ram . | . . . . . . . . . . . . . . . Kick . | . . . . . . . . . . . . . . . Crush 1 | . . . . 1 . . . . . . . . . . Escape Stasis . | . . . . . . . . . . . . . . . Rewire . | . . . . . . . . . . . . . . . Trap . | . . . . . . . . . . . . . . . Miscellaneous . | . . . . . . . . . . . . . . . Route ------- -11/Scrapyard -10/Materials (discovered 3 exits: *Mat x2 / *Min) -10/Mines (discovered 2 exits: *Mat x2) -9/Materials (discovered 2 exits: *Mat / [*Min]) -9/Mines (discovered 3 exits: *Mat x2 / *Exi) -9/Exiles -8/Mines -8/Materials -8/Storage -7/Factory (discovered 3 exits: *Fac / *Low x2) -7/Lower Caves -7/Lower Caves (discovered 2 exits: Fac / *Dat) -7/Data Miner -6/Proximity Caves -6/Factory (discovered 5 exits: [*Fac] / *Low x2 / *Ext x2) History --------- Turn | Location | Event 28 | -11/Scrapyard | Discovered new exit (range 16) 77 | -11/Scrapyard | Entered Materials 175 | -10/Materials | Discovered new exit (range 10) 254 | -10/Materials | Discovered new exit (range 5) 309 | -10/Materials | Build established: Mutant 489 | -10/Materials | Discovered new exit (range 15) 999 | -10/Materials | Entered Mines 1088 | -10/Mines | Received a Rocket Launcher from a helpful Derelict 1224 | -10/Mines | Learned location of Storage (-8) 1325 | -10/Mines | Met a Derelict who couldn't figure out how to use a Trap Extractor 1812 | -10/Mines | Found the Drone Emporium 1823 | -10/Mines | Found Prototype Device 1833 | -10/Mines | Identified Thief Drone Bay 1844 | -10/Mines | Learned Materials trap positions 1954 | -10/Mines | Discovered new exit (range 10) 2065 | -10/Mines | Discovered new exit (range 5) 2616 | -10/Mines | Entered Materials 2616 | -9/Materials | Evolved 2 slots: Propulsion x1, Utility x1 2617 | -9/Materials | Loaded intel: 14 trap records 3003 | -9/Materials | Discovered new exit (range 10) 3652 | -9/Materials | Discovered new exit (range 11) 3662 | -9/Materials | Central database locked down 3686 | -9/Materials | Entered Mines 3732 | -9/Mines | A weapon hastily lodged in a ceiling crevice suddenly fell to the ground 3782 | -9/Mines | Excavation squad dispatched 3782 | -9/Mines | A large section of the Mines collapsed 4032 | -9/Mines | Excavation squad dispatched 4055 | -9/Mines | Learned location of 1 exit from Lower Caves 4095 | -9/Mines | Learned Materials machine intel 4282 | -9/Mines | Excavation squad dispatched 4378 | -9/Mines | Discovered new exit (range 9) 4979 | -9/Mines | Discovered new exit (range 9) 5067 | -9/Mines | Deemed a non-threat by the Exiles lab entrance 5067 | -9/Mines | Discovered new exit (range 5) 5077 | -9/Mines | Entered Exiles 5137 | -9/Exiles | Met 8R-AWN 5176 | -9/Exiles | Met EX-HEX 5245 | -9/Exiles | Met EX-BIN 5272 | -9/Exiles | Aligned with FarCom system 5274 | -9/Exiles | Given EX-Vault access code 5332 | -9/Exiles | Opened EX-Vault 5353 | -9/Exiles | Found Gui. Plasma Cannon 5364 | -9/Exiles | Found AWS/Thermal 5373 | -9/Exiles | Found AWS/Autocannon 5427 | -9/Exiles | Warned to stay clear of 0b10 Research branches 5501 | -9/Exiles | Met EX-DEC 5511 | -9/Exiles | Learned location of Zion (-6) 5583 | -9/Exiles | Discovered new exit (range 12) 6144 | -9/Exiles | Attacked by the Exiles 6214 | -9/Exiles | Destroyed 7 combat bots 6354 | -9/Exiles | Lost 3 parts (1p1n1w) 6392 | -9/Exiles | Core integrity fell below 50% 6776 | -9/Exiles | Destroyed 8R-AWN 6812 | -9/Exiles | Found Prototype Processor 6827 | -9/Exiles | Found AS-neutralizer No. 17b 6847 | -9/Exiles | Found 8R-AWN's Boregun 6942 | -9/Exiles | Destroyed EX-HEX 7015 | -9/Exiles | Destroyed EX-DEC 7019 | -9/Exiles | Destroyed EX-BIN 7038 | -9/Exiles | Found Prototype Processor 7055 | -9/Exiles | Found Prototype Device 7055 | -9/Exiles | Identified System Purifier 7080 | -9/Exiles | Found Deploy-a-Sentry 7318 | -9/Exiles | Stole four prototypes: AWS/Thermal, Gui. Plasma Cannon, AWS/Autocannon, Deploy-a-Sentry 7318 | -9/Exiles | Entered Mines 7582 | -8/Mines | Discovered new exit (range 9) 7599 | -8/Mines | Entered Materials 7599 | -8/Materials | Evolved 2 slots: Propulsion x1, Utility x1 7600 | -8/Materials | Loaded intel: 75 machine locations 7621 | -8/Materials | Build established: Scavenger-Mutant 7654 | -8/Materials | Identified exit to Storage 7971 | -8/Materials | Identified Exp. Core Analyzer 7971 | -8/Materials | Identified Exp. Targeting Computer 8123 | -8/Materials | Build established: Mutant 8963 | -8/Materials | Build established: Scavenger-Mutant 9041 | -8/Materials | Entered Storage 9116 | -8/Storage | Garrison activated, responded to threat 10192 | -8/Storage | Discovered new exit (range 16) 10212 | -8/Storage | Assisted by bots powering up and referring to "LRC-V3" 10259 | -8/Storage | Entered Factory 10259 | -7/Factory | Accompanied by 8 allies 10259 | -7/Factory | Evolved 2 slots: Utility x2 10369 | -7/Factory | Identified exit to Lower Caves 10381 | -7/Factory | Discovered new exit (range 13) 10410 | -7/Factory | Identified exit to Factory 10754 | -7/Factory | Build established: Scavenger-Skirmisher 11127 | -7/Factory | Repaired Rnf. Fission Core 11154 | -7/Factory | Repaired Arm. Treads 11347 | -7/Factory | Build established: Scavenger-Mutant 11795 | -7/Factory | Cargo convoy interrupted 11836 | -7/Factory | Destroyed 8 combat bots 11860 | -7/Factory | Lost 3 parts (2n1u) 12021 | -7/Factory | Entered Lower Caves 12022 | -7/Lower Caves | Identified exit to Lower Caves 12382 | -7/Lower Caves | Attracted the attention of an 0b10 checkpoint 12591 | -7/Lower Caves | Entered another Lower Caves area 12776 | -7/Lower Caves | Learned 8 Factory zone layouts 12866 | -7/Lower Caves | Encountered a Warlord checkpoint 12989 | -7/Lower Caves | Learned Factory emergency access door positions 13250 | -7/Lower Caves | Spotted WD-F13(f) 13251 | -7/Lower Caves | Spotted FF-J4D(f) 13252 | -7/Lower Caves | Encountered a Master Thief 13252 | -7/Lower Caves | Encountered a Master Thief 13253 | -7/Lower Caves | Spotted P2-MAR(f) 13254 | -7/Lower Caves | Encountered a Master Thief 13254 | -7/Lower Caves | Spotted AE-TMM(f) 13254 | -7/Lower Caves | Spotted K5-8TF(f) 13255 | -7/Lower Caves | Encountered a Master Thief 13255 | -7/Lower Caves | Encountered a Master Thief 13257 | -7/Lower Caves | Adv. Weapon Cycler stolen by Master Thief 13258 | -7/Lower Caves | DAS Turret deployed 13258 | -7/Lower Caves | System Purifier stolen by Master Thief 13261 | -7/Lower Caves | Allies destroyed AE-TMM(f) 13263 | -7/Lower Caves | Exp. Cooling System stolen by Master Thief 13263 | -7/Lower Caves | Allies destroyed P2-MAR(f) 13314 | -7/Lower Caves | Build established: Mutant 13354 | -7/Lower Caves | Discovered new exit (range 5) 13360 | -7/Lower Caves | Identified exit to Data Miner 13361 | -7/Lower Caves | Entered Data Miner 13362 | -7/Data Miner | Discovered new exit (range 6) 13385 | -7/Data Miner | Met Data Miner 13452 | -7/Data Miner | Learned location of Section 7 (-2) 13452 | -7/Data Miner | Acquired the access code to Warlord's prototype stash 13474 | -7/Data Miner | Received God Mode back door access code from Data Miner 13518 | -7/Data Miner | Identified exit to Proximity Caves 13520 | -7/Data Miner | Entered Proximity Caves 13551 | -6/Proximity Caves | Escorted by Enhanced Grunt 13571 | -6/Proximity Caves | Learned 4 Factory zone layouts 13623 | -6/Proximity Caves | Build established: Scavenger-Mutant 14107 | -6/Proximity Caves | Spotted B-75 Beast 14356 | -6/Proximity Caves | Discovered exit to Factory (range 10) 14365 | -6/Proximity Caves | Lost 5 parts (3n2w) 14366 | -6/Proximity Caves | Core integrity fell below 50% 14373 | -6/Proximity Caves | Entered Factory 14373 | -6/Factory | Evolved 2 slots: Power x1, Utility x1 14409 | -6/Factory | Spotted B-75 Beast 14623 | -6/Factory | Build established: Mutant 15115 | -6/Factory | Identified exit to Lower Caves 15115 | -6/Factory | Identified exit to Extension 15283 | -6/Factory | Fabricated Adv. Corruption Screen? 16053 | -6/Factory | Lost 3 parts (2p1n) 16307 | -6/Factory | Build established: Scavenger-Mutant 16539 | -6/Factory | Discovered new exit (range 11) 16673 | -6/Factory | Lost 4 parts (1p1n1u1w) 16882 | -6/Factory | Incoming investigation squad redirected 17137 | -6/Factory | Lost 4 parts (1p1n2u) 17173 | -6/Factory | First assault squad dispatched 17186 | -6/Factory | Cargo convoy interrupted 17191 | -6/Factory | Core integrity fell below 50% 17193 | -6/Factory | Incoming assault squad redirected 17202 | -6/Factory | Self-destructed Last Messages --------------- 17195_ P-60 Hacker destroyed. 17195_ A-27 Freighter distress signal jammed. 17195_ I-36 Angel distress signal jammed. 17196_ Acquired Com. Ion Cannon. 17196_ Slug penetrates Wall. 17196_ I-36 Angel distress signal jammed. 17198_ Destroyed Shock Rifle. 17198_ Slug penetrates Wall. 17198_ Exp. Cooling System destroyed. 17198_ I-36 Angel distress signal jammed. 17199_ Penetrated by Slug. 17199_ Flexi-carbon Leg destroyed. 17199_ I-36 Angel distress signal jammed. 17200_ Destroyed Shock Rifle. 17200_ I-36 Angel distress signal jammed. 17201_ Fusion Modulator explodes. 17201_ P-60 Hacker destroyed. 17201_ I-36 Angel destroyed. 17201_ O-16 Technician destroyed. 17202_ Penetrated by Slug. Map ----- +----------------------------------------------------+ | ???????????????????????????????????????? | | ???????????????????????????????????????? | | ???????????????????????????????????????? | | ???????????????????????????????????????? | | ???????????????????????????????????????? | | ???????????????????????????????????????? | | ????????????????????????????#??????????? | | ????????????????##########? #??????????? | | ?????????????????! T ? ??????????? | | ????????????????? ? ??????????? | | ?????????????????? ! ? ??????????? | | ????????????????+? + ??????????? | | ??????????????????#;;;;;;;;;#??????????? | | ?????????????????## ; #?????#????? | | ????????##???????#; ; ##??? #????? | | ????????? ??????#; ;;;#### #????? | | ??????????? ????# #????? | | ???????????? #### +????? | | ?????????????? ; #????? | | ???????????????# ;; #????? | | ??????#????????# ;; #????? | | ?????? ????# ;; #????? | | ???????""" !!!#h ; #????? | | ???????""" !!!;[;* ;; #????? | | ???????""" !!! =% %= ] #????? | | ?????# % x% = @#######?#????? | | ?????# "T" [ ! %!h*!/%* #?? #????? | | ???????""" [p* ;[ * ! #?? #????? | | ?????? ! ; *!! #?? #????? | | ?????########+## [; * ! #?? #????? | | ????????????? ; ##? #????? | | ????????????###### ; #! #? #????? | | ?????????????????#"T"#k######;;## #????? | | ?????????????????#"""# + /# #????? | | ?????????????????######## "T [# #????? | | ????????????????????????# "" !%#=#????? | | ????????????????????????# ;%#????? | | ????????????????????????####"#"#; #????? | | ???????????????????????????###% ##???? | | ?????????????????????????????# % ;#???? | | ?????????????????????????????# ##???? | | ?????????????????????????????# #????? | | ?????????????????????????????# #????? | | ????????????????????>????????# #????? | | ?????????????????????????????# #????? | | ????????????????????????????## #????? | | ????????????????????????????# #????? | | ????????????????????????????#T #????? | | ????????????????????????????## ####????? | | ?????????????????????????????# #???????? | +----------------------------------------------------+ Best States ------------- Heat Dissipation 75 Energy Generation 32 Energy Capacity 540 Matter Stores 300 Matter Capacity 300 Sight Range 22 Robot Scan Range 15 Terrain Scan Density 10 Jamming Range 12 Armor Coverage 600 Resistance: EM 15 Weapon Cycling 15 Evasion (%) 40 Recoil Reduction 4 Offensive Hacking 10 Defensive Hacking 11 Item Schematics ----------------- Huge Storage Unit | -9/Materials | Hacked Hcp. Storage Unit | -9/Materials | Hacked Combat Drone Bay | -7/Data Miner | Free Lgt. Regenerative Plating | -7/Data Miner | Free Cld. Cesium-ion Thruster | -7/Data Miner | Free Exp. Targeting Computer | -7/Data Miner | Free Imp. Heavy Laser | -7/Data Miner | Free Antigrav System | -7/Data Miner | Free Imp. Kinecellerator | -7/Data Miner | Free Tesla Rifle | -7/Data Miner | Free Antimatter Reactor | -7/Data Miner | Free Robot Schematics ------------------ M-22 Extractor | -7/Data Miner | Free G-47 Trooper | -7/Data Miner | Free W-25 Informer | -7/Data Miner | Free E-15 Imp | -7/Data Miner | Free B-48 Gladiator | -7/Data Miner | Free B-60 Warrior | -7/Data Miner | Free Fabricated ------------ Adv. Corruption Screen | x2 | -6/Factory | Preloaded Alien Tech Used ----------------- None Achievements -------------- None Challenges ------------ None Game ------ Seed PhasingCompositeDetector Manual? 0 Play Time 01:42:06 Cumulative 374.7 hours Start 2022.04.30 @ 18:55:49 End 2022.05.01 @ 15:26:20 Sessions 3 Manual Loads 0 Difficulty Rogue Special Mode None Game No. 529 Rogue 529 Adventurer 0 Explorer 0 Win Type - Total 7 Types 5/0/1/1/0/0/0/0/0 Lore% 84 Gallery% 87 Achievement% 69 Wizard Run 0 Options --------- ASCII 0 Keyboard 1 Movement Numpad Keybinds 0 Fullscreen 2 Font 24/Smallcaps Map View 76x50 Tactical HUD 1 Map Filters NONE Filters NONE Steam 1 RUN: a884048c-f6d8-4df3-9b98-a9a1e7971f34